Workbook

Sheet Instructions
F1: UCC28630/1/2/3 Design Calculator
A4: 1. The Macros must be ENABLED.
A6: 2. Enter the desired design parameters in the YELLOW shaded boxes..
A8: 3. The spreadsheet will calculate the component values and power supply parameters and display the results in red type.
A10: 4. For some parameters, prosivion is made for the user to override the suggested values with their own values. These cells are a lighter yellow.
A12: 5. Note this design tool was generated to accompany datasheet UCC28630.pdf. It is recommended to read this datasheet before using this tool
B13: UCC28630.pdf
A15: 6. There are comment boxes in the descriptions column of the Components and parameter calculations section which refer the user to the relevant section of the datasheet for that calculation.
G17: Click Here to Start
B19: Disclaimer
B20: This product is designed as an aid for customers of Texas Instruments. No warranties, either express
B21: or implied, with respect to this software or its fitness for any particular purpose is claimed by Texas
B22: Instruments or the author. The software is licensed solely on an "as is" basis. The entire risk as to its
B23: quality and performance is with the customer.
A26: SLUC537
A27: Rev D
A28: 2015-07-15

Sheet Schematic
A37: =Instructions!A26 -> SLUC537
A38: =Instructions!A27 -> Rev D
A39: =Instructions!A28 -> 2015-07-15

Sheet Calculations
A1: UCC28630, UCC28631, UCC28632, UCC28633 Excel Design Tool | K1: =Instructions!A26 -> SLUC537
K2: =Instructions!A27 -> Rev D
A3: This design tool was generated based on the information in datasheet | D3: UCC28630.pdf | K3: =Instructions!A28 -> 2015-07-15
A4: It is recommended that you read this datasheet before using this design tool
A5: Enter Design Parameters and Chosen Component Values in Yellow Cells
A7: Design Specifications
A8: Description | D8: Minimum | E8: Nominal | F8: Maximum | G8: Suggested | H8: User Override | I8: Used | J8: Unit
A9: RMS Input Voltage | D9: 88 | E9: 115 | F9: 265 | J9: V
A10: Line Voltage Frequency | D10: 47 | E10: 50 | F10: 63 | J10: Hz
A11: Output Voltage | E11: 24 | J11: V
A12: Nominal Output Power | E12: 45 | J12: W
A13: Transient Maximum Output Power | E13: =2*Pnom -> 90 | J13: W
A14: Duration of Maximum Power delivery | C14: T_pmax | E14: 1 | G14: =IF(E14>wt2_surge,wt2_surge,E14) -> 1 | J14: ms | K14: If the unit has a surge load requirement, enter the duration of the surge load here, if not set to zero.
A15: Overload threshold (Continuous) (% of Pnom) | B15: Applies to UCC28630 only | C15: 3 | D15: 1 | K15: This sets the maximum percentage of the nominal output power that the unit can supply continuously. See datasheet for full explanation of Overload timer.
A16: Bulk Capacitance (~1.5-2uF/W of Pnom recommended) | G16: =2*Pnom -> 90 | H16: 90 | I16: =IF(H16,H16,G16) -> 90 | J16: uF
A17: Full Load Efficiency Typical | E17: 0.87 | J17: %
A18: Peak Input voltage | D18: =Vac_min*SQRT(2) -> 124.4507935 | E18: =Vac_nom*SQRT(2) -> 162.6345597 | F18: =Vac_max*SQRT(2) -> 374.766594 | J18: V
A19: Output Current | E19: =Pnom/Vout -> 1.875 | F19: =Iout_limit -> 5.331746989 | J19: A
A20: Maximum Steady State Output power (POL) | B20: Applies to UCC28630 only | E20: =CHOOSE($D$15,Pnom*1.1,Pnom*1.35,Pnom*1.6) -> 49.5 | J20: W | K20: This is the maximum power the unit can supply continuously with the chosen Overload Threshold
A21: External startup resistor | C21: Rext | E21: 200 | J21: kΩ
A22: Pull up resistor from Drv pin to Bias voltage divider | C22: Rp | E22: 3.9 | J22: kΩ
A23: Safe Extra Low Voltage level | C23: VSELV | E23: 60 | J23: V
A25: Bulk voltage calculation (Datasheet section 9.2.4.1)
A26: Time at which the falling bulk cap voltage equals the rectified line votlage at nominal output power. | C26: ωt2_nom | D26: 7.728670348 | E26: ms | F26: =D27+Vacpk_min*COS(wt2_nom*PI()*2*Fac_min/1000) -> -1.592819387e-06 | G26: See "Line and bulk voltage" explanatory diagram
A27: Minimum bulk voltage at nominal load | C27: Vbulkmin_nom | D27: =IF((Vacpk_min)^2-(2*Pnom*(wt2_nom*PI()*2*Fac_min/1000))/(Eff*Cbulk*0.000001*2*PI()*Fac_min)>0, (SQRT((Vacpk_min)^2-(2*Pnom*(wt2_nom*PI()*2*Fac_min/1000))/(Eff*Cbulk*0.000001*2*PI()*Fac_min))),0) -> 81.26789565 | E27: V | F27: =IF(Vbulkmin_nom>=N*Vout*(1-δmax)/δmax,"Ok","Insufficient Bulk Cap") -> Ok | G27: If this cell is Red, the bulk capacitance is too low to supply the nominal output power
A28: Time at which the falling bulk cap voltage equals the rectified line votlage at the overload power threshold. | B28: Applies to UCC28630 only | C28: ωt2_pol | D28: 7.574225115 | E28: ms | F28: =D29+Vacpk_min*COS(wt2_pol*PI()*2*Fac_min/1000) -> -0.0005104633045
A29: Minimum bulk voltage at POL | C29: Vbulkmin_OL | D29: =IF((Vacpk_min)^2-(2*P_ol*(wt2_pol*PI()*2*Fac_min/1000))/(Eff*Cbulk*0.000001*2*PI()*Fac_min)>0, (SQRT((Vacpk_min)^2-(2*P_ol*(wt2_pol*PI()*2*Fac_min/1000))/(Eff*Cbulk*0.000001*2*PI()*Fac_min))),0) -> 76.88558729 | E29: V | F29: =IF(Vbulkmin_OL>=N*Vout*(1-δmax)/δmax,"Ok","Insufficient Bulk Cap") -> Ok | G29: If this cell is Red, the bulk capacitance is too low to supply the speicifed overload power
A30: Time at which the falling bulk cap voltage equals the rectified line votlage at the maximum power. | C30: ωt2_surge | D30: 7.524190376 | E30: ms | F30: =D31+Vacpk_min*COS(wt2_surge*PI()*2*Fac_min/1000) -> 0.0008120243535
A31: Minimum bulk voltage when load is stepped from Pnominal to Pmax for time Tmax | C31: Vbulkmin_surge | D31: =IF((Vacpk_min)^2-((2*Pmax*T_pmax*0.001)/(Eff*Cbulk*0.000001))-(2*Pnom*((wt2_surge-T_pmax)*PI()*2*Fac_min/1000))/(Eff*Cbulk*0.000001*2*PI()*Fac_min)>0, (SQRT((Vacpk_min)^2-((2*Pmax*T_pmax*0.001)/(Eff*Cbulk*0.000001))-(2*Pnom*((wt2_surge-T_pmax)*PI()*2*Fac_min/1000))/(Eff*Cbulk*0.000001*2*PI()*Fac_min))),0) -> 75.43261912 | E31: V | F31: =IF(Vbulkmin_surge>=N*Vout*(1-δmax)/δmax,"Ok","Insufficient Bulk Cap") -> Ok | G31: If this cell is Red, the bulk voltage is too low to keep the output voltage in constant voltage regulation, the output will be in constant current regulation. Note that when Vbulk < Vbulkmin_nom the output may enter constant current regulation depending on the load power. This calculation assumes that the max load is applied at the peak of line. To calculate the Vbulkmin_surge when the max load is applied at an arbitrary phase angle, please use the accompaying mathcad design file.
A32: Parameter Entry
A33: Boundary mode Vbulk voltage @ Pnom | C33: Vboundary (=Vbulkmin_nom by default, enter an override value in cell D33 if desired) | E33: =IF(D33,D33,D27) -> 81.26789565 | F33: V | G33: This is the voltage at which the unit operates in boundary mode. The inductance calculation is based on this voltage. By default this is equal to Vbulkmin_nom on line 27. For more continuous operation, increase this voltage
A34: Target Vdd Voltage | C34: Vdd | D34: 18 | E34: V
A35: Bias Diode Forward Voltage Drop | C35: Vbias_diode | D35: 0.7 | E35: V
A36: Output Capacitor | C36: Cout | D36: 1300 | E36: uF
A37: Secondary Side Reflected Voltage | C37: Vreflected | D37: 95 | E37: V | F37: - Recommended reflected output voltage = 120V, reflected output voltages of ~140V < Vreflected < 115V may result in the design violating inductance to current sense resistance ratios required. In this case the inductance and or current sense resistance may have to be manually adjusted in the User Override column provided below. Increasing the boundary mode point will allow a greater range of reflected voltage.
A38: Output Rectifier Forward Voltage Drop | C38: Vrect | D38: 0.45 | E38: V
A39: Rectifier Derating | C39: VRect_Derating | D39: 0.85 | E39: %
A40: Transformer Core Maximum Flux density | C40: Bpk | D40: 325 | E40: mT
A41: Transformer Core Cross Sectional area | C41: Ae | D41: 96.6 | E41: mm2
A42: Secondary to Bias Leakage inductance (as a percentage of the secondary inductance) | C42: %Llk_sb | D42: 0.06 | E42: % | F42: Approximate value on EVM transformer.
A43: MosFET total Gate Charge | C43: Qg_tot | D43: 30 | E43: nC
A44: LED Diode Drop | D44: 1.8 | E44: V
A45: Input X-capacitor value | C45: CX-cap | D45: 330 | E45: nF
A46: Component and paramter calculation
D47: Suggested | E47: User Override | F47: Used | G47: Units
A48: Target Turns Ratio | C48: N | D48: =V_reflected/(Vout+V_rect) -> 3.885480573 | F48: =IF(E48,E48,D48) -> 3.885480573
A49: Primary Inductance (for boundary mode operation at Vbulkmin_nom) | C49: Lmag | D49: =1/(2*Pnom/Eff*(1/V_boundary+1/(N*(Vout+V_rect)))^2*Fsw_nom*1000)*1000000 -> 309.075295 | F49: =IF(E49,E49,D49) -> 309.075295 | G49: uH
A50: Current Sense Resistance calculation (for boundary mode operation at Vbulkmin_nom) | D50: =(Vcs_max/pnir)*SQRT((Lmag*0.000001*Fsw_nom*1000*Eff)/(2*Pnom)) -> 270.9730608 | E50: 200 | F50: =IF(E50,E50,D50) -> 200 | G50: mΩ
A51: Standard E24 E-series value for Rcs | C51: Rcs | D51: =10^INT(LOG(F50))*INDEX((E_Series_Values!D2:D26),MATCH(MIN(ABS((E_Series_Values!$D$2:$D$26)-(F50/10^INT(LOG(F50))))),ABS((E_Series_Values!$D$2:$D$26)-(F50/10^INT(LOG(F50)))),0)) -> 200 | F51: 200 | G51: mΩ
A52: Maximum Primary Current | C52: Ipk_max | D52: =Vcs_max/Rcs -> 4 | F52: 4 | G52: A
A53: Number of Primary Turns | C53: Npri | D53: =ROUND(Lmag*0.000001*Ipk_max/(Bpk*0.001*Ae*0.000001),0) -> 39 | F53: 39
A54: Number of Secondary Turns | C54: Nsec | D54: =ROUND(D53/N,0) -> 10 | F54: 10
A55: Number of Bias Turns | C55: Nbias | D55: =ROUND((Vbias+Vbias_diode)*Nsec/(Vout+V_rect),0) -> 8 | F55: 8
A56: Transformer Al | C56: Al | D56: =(Lmag*0.000001/Npri^2)*1000000000 -> 203.2053221 | F56: 203.2053221 | G56: nH
A57: Rectifier Reverse Voltage Rating | C57: VRect_Rating | D57: =((Vacpk_max*Nsec/Npri)+Vout)/Rectifier_Derating -> 141.287057 | F57: 141.287057 | G57: V
A58: Vdd Capacitor Calculation (Minimum) | D58: =1000000*(Idd_run*0.001*tstart_del*0.001+(Idd_run*0.001+Fsw_nom*1000*Qg_tot*0.000000001)*(Vout*Cout*0.000001/(Iout_limit-Inom))*(Vddstop_max/Vbias))/(Vddstart_min-Vddstop_max) -> 16.2292705 | F58: 16.2292705 | G58: uF
A59: Next Highest Standard E-series value for CVdd (E6) | C59: CVDD | D59: =10^(IF(INT(LOG(F58))>1,INT(LOG(F58)),1))*INDEX(E_Series_Values!$F$2:$F$8,MATCH(MIN(IF((E_Series_Values!$F$2:$F$8)-(F58/10^(IF(INT(LOG(F58))>1,INT(LOG(F58)),1)))>=0,(E_Series_Values!$F$2:$F$8)-(F58/10^(IF(INT(LOG(F58))>1,INT(LOG(F58)),1))))),IF((E_Series_Values!$F$2:$F$8)-(F58/10^(IF(INT(LOG(F58))>1,INT(LOG(F58)),1)))>=0,(E_Series_Values!$F$2:$F$8)-(F58/10^(IF(INT(LOG(F58))>1,INT(LOG(F58)),1)))))) -> 22 | F59: 22 | G59: uF
A60: Startup Delay | C60: Tstart_delay | D60: =Rext*1000*Cbias*0.000001*LN((Vacpk_min*2/PI())/((Vacpk_min*2/PI())-Vddstart_max))*1000 -> 1027.498551 | F60: 1027.498551 | G60: ms
A61: Ra Calculation | D61: =Rp*Nbias*Kline/Npri -> 39.4 | F61: 39.4 | G61: kΩ
A62: Standard E-series value for Ra (E96) | C62: Ra | D62: =10^INT(LOG(F61))*INDEX((E_Series_Values!$B$2:$B$97),MATCH(MIN(ABS((E_Series_Values!$B$2:$B$97)-(F61/10^INT(LOG(F61))))),ABS((E_Series_Values!$B$2:$B$97)-(F61/10^INT(LOG(F61)))),0)) -> 39.2 | F62: 39.2 | G62: kΩ
A63: Rb Calculation | C63: Rb | D63: =Ra/((Vout*(1-Llk_sb)+V_rect)*(Nbias/Nsec)/Vout_ref-1) -> 26.95269527 | F63: 26.95269527 | G63: kΩ | H63: It is suggested that Rb be implemented as two resistors in parallel to get as close to this value as possible.
A64: RTH Value | C64: Rth | D64: =(Ra*Rb)/(Ra+Rb) -> 15.97131682 | F64: =R_th -> 15.97131682 | G64: kΩ
A65: Minimum load power to maintain regulation | D65: =0.5*Lmag*0.001*(Vcs_min/(Rcs))^2*(Fsw_min*1000) -> 22.85920882 | F65: 22.85920882 | G65: mW
A66: Maximum load resistance to maintain regultaion | D66: =(Vout^2-Vout*V_LED)/(2*P_preload_min) -> 11.65394665 | F66: 11.65394665 | G66: kΩ
A67: Next lowest standard E-series value for Rpreload | C67: Rpreload | D67: =10^INT(LOG(F66))*INDEX((E_Series_Values!$D$2:$D$26),MATCH(MIN(IF((E_Series_Values!$D$2:$D$26)-(F66/10^INT(LOG(F66)))>0,(E_Series_Values!$D$2:$D$26)-(F66/10^INT(LOG(F66))),10)),(E_Series_Values!$D$2:$D$26)-(F66/10^INT(LOG(F66))),0)-1) -> 11 | F67: 11 | G67: kΩ
A68: Output Constant Current Limit (default 100% value) | B68: Applies to UCC28630 only | C68: Iout_limit | D68: =1/(Rcs*0.001)*Npri/Nsec*Kcc_1/(Kcc_2+Vout*N) -> 5.331746989 | F68: =Iout_limit -> 5.331746989 | G68: A | H68: This is the default 100% CC limit - this can be adjusted between 50% - 100% on UCC28631, UCC28632 & UCC28633
A69: Output Capacitor Ripple Current @ Pnom | C69: Iripple(nom) | D69: =SQRT((Vcs_max*Npri/Nsec/(Rcs*pnir)*SQRT(Vbulkmin_nom/(3*(Vbulkmin_nom+Npri/Nsec*(Vout+V_rect)))))^2-Inom^2) -> 4.51357759 | F69: =I_cout_limit -> 4.51357759 | G69: A
A70: Maximum X-capacitance value that cap be discharged using the current value of CVdd | B70: Applies to UCC28630 & UCC28633 only | C70: Xcap_max | D70: =Cbias*0.000001*(Vddstart_min-Vddreset_max)/(Vacpk_max-V_selv)*1000000000 -> 454.3048809 | F70: =Xcap_max -> 454.3048809 | G70: nF
D72: =IF(AND((10<((Ra*Rb)/(Ra+Rb))),(((Ra*Rb)/(Ra+Rb))<20)),"Ok","Rth out of Range") -> Ok | H72: Is the thevenin equivalent resistance of the Ra,Rb resistor divider between 10kΩ and 20kΩ. If Rth is outside this range it will trigger a pin fault on startup and the IC will not start!!!
B74: Applies to UCC28630 & UCC28633 only | D74: =IF(Cbias*0.000001>=Cx_cap*0.000000001*(Vacpk_max-V_selv)/(Vddstart_min-Vddreset_max),"Ok","Xcap too large and/or Vdd cap too small") -> Ok | H74: Is the Vdd capacitor large enough to discharge the X-cap beow the SELV voltage level of 60V, without it's voltage rising about the IC start threshold.
B76: Applies to UCC28630 & UCC28633 only | D76: =IF(Cbulk<=(Pnom/Eff)/(4*(Vacpk_max^2-V_selv^2))*1000000,"Ok","Too much Bulk capacitance") -> Ok | H76: Is the bulk capacitor below the level at which it will discharge the X-cap to the SELV level in 1 second when the power is above the threshold at which X-cap discharge is disabled.
D78: =IF(Rcs*0.001/(Lmag*0.000001)<=(Vcs_min*0.001)/(t_smp*0.000001*Npri/Nsec*(Vout+V_rect)),"True","FALSE, Increase Lpri or reduce Rcs") -> True | H78: Does the Rcs, Lpri ratio satisfy the Volt second contraint required for output sampling
D80: =IF((Rcs*0.001/(Lmag*0.000001))<=((Vcs_min*0.001)/(Vacpk_max*ton_min*1*10^-9)),"True","FALSE, Increase Lpri or reduce Rcs") -> True | H80: Does the Rcs, Lpri ratio satisfy the Volt second contraint required for tonmin

Sheet Internal IC Parameters (hidden)
A1: Internal IC Parameters
B3: Vcsmax (mV) | C3: 800
B4: Vcsmin (mV) | C4: 172
B5: Vddstart_min (V) | C5: 13
B6: Vddstart_max (V) | C6: 16.5
B7: fswmin (kHz) | C7: 0.2
B8: fswnom (kHz) | C8: 60
B9: fswmax (kHz) | C9: 120
B10: Vout_ref (V) | C10: 7.5
B11: Vddstop_max (V) | C11: 8.5
B12: Vddreset_max (V) | C12: 6.5
B13: Iddrun (mA) | C13: 9
B14: Kcc1 | C14: 44.5
B15: Kcc2 | C15: 69.5
B16: Kline | C16: 49.25
B17: δmax | C17: 0.7
B18: pnfr | C18: 2
B19: pnir | C19: 1.25
B20: pnpr | C20: 2
B21: tonmin (ns) | C21: 600
B22: tsmp (us) | C22: 1.7
B23: tstart_del (ms) | C23: 3

Sheet E_Series_Values (hidden)
B1: E96 | C1: E48 | D1: E24 | E1: E12 | F1: E6
A2: 1 | B2: =ROUND(10^((A2-1)/96),2) -> 1 | C2: =ROUND(10^((A2-1)/48),2) -> 1 | D2: 1 | E2: 1 | F2: 1
A3: 2 | B3: =ROUND(10^((A3-1)/96),2) -> 1.02 | C3: =ROUND(10^((A3-1)/48),2) -> 1.05 | D3: 1.1 | E3: 1.2 | F3: 1.5
A4: 3 | B4: =ROUND(10^((A4-1)/96),2) -> 1.05 | C4: 1.1 | D4: 1.2 | E4: 1.5 | F4: 2.2
A5: 4 | B5: =ROUND(10^((A5-1)/96),2) -> 1.07 | C5: 1.15 | D5: 1.3 | E5: 1.8 | F5: 3.3
A6: 5 | B6: =ROUND(10^((A6-1)/96),2) -> 1.1 | C6: 1.21 | D6: 1.5 | E6: 2.2 | F6: 4.7
A7: 6 | B7: 1.13 | C7: 1.27 | D7: 1.6 | E7: 2.7 | F7: 6.8
A8: 7 | B8: 1.15 | C8: 1.33 | D8: 1.8 | E8: 3.3 | F8: 10
A9: 8 | B9: 1.18 | C9: 1.4 | D9: 2 | E9: 3.9
A10: 9 | B10: 1.21 | C10: 1.47 | D10: 2.2 | E10: 4.7
A11: 10 | B11: 1.24 | C11: 1.54 | D11: 2.4 | E11: 5.6
A12: 11 | B12: 1.27 | C12: 1.62 | D12: 2.7 | E12: 6.8
A13: 12 | B13: 1.3 | C13: 1.69 | D13: 3 | E13: 8.2
A14: 13 | B14: 1.33 | C14: 1.78 | D14: 3.3 | E14: 10
A15: 14 | B15: 1.37 | C15: 1.87 | D15: 3.6
A16: 15 | B16: 1.4 | C16: 1.96 | D16: 3.9
A17: 16 | B17: 1.43 | C17: 2.05 | D17: 4.3
A18: 17 | B18: 1.47 | C18: 2.15 | D18: 4.7
A19: 18 | B19: 1.5 | C19: 2.26 | D19: 5.1
A20: 19 | B20: 1.54 | C20: 2.37 | D20: 5.6
A21: 20 | B21: 1.58 | C21: 2.49 | D21: 6.2
A22: 21 | B22: 1.62 | C22: 2.61 | D22: 6.8
A23: 22 | B23: 1.65 | C23: 2.74 | D23: 7.5
A24: 23 | B24: 1.69 | C24: 2.87 | D24: 8.2
A25: 24 | B25: 1.74 | C25: 3.01 | D25: 9.1
A26: 25 | B26: 1.78 | C26: 3.16 | D26: 10
A27: 26 | B27: 1.82 | C27: 3.32
A28: 27 | B28: 1.87 | C28: 3.48
A29: 28 | B29: 1.91 | C29: 3.65
A30: 29 | B30: 1.96 | C30: 3.83
A31: 30 | B31: 2 | C31: 4.02
A32: 31 | B32: 2.05 | C32: 4.22
A33: 32 | B33: 2.1 | C33: 4.42
A34: 33 | B34: 2.15 | C34: 4.64
A35: 34 | B35: 2.21 | C35: 4.87
A36: 35 | B36: 2.26 | C36: 5.11
A37: 36 | B37: 2.32 | C37: 5.36
A38: 37 | B38: 2.37 | C38: 5.62
A39: 38 | B39: 2.43 | C39: 5.9
A40: 39 | B40: 2.49 | C40: 6.19
A41: 40 | B41: 2.55 | C41: 6.49
A42: 41 | B42: 2.61 | C42: 6.81
A43: 42 | B43: 2.67 | C43: 7.15
A44: 43 | B44: 2.74 | C44: 7.5
A45: 44 | B45: 2.8 | C45: 7.87
A46: 45 | B46: 2.87 | C46: 8.25
A47: 46 | B47: 2.94 | C47: 8.66
A48: 47 | B48: 3.01 | C48: 9.09
A49: 48 | B49: 3.09 | C49: =ROUND(10^((A49-1)/48),2) -> 9.53
A50: 49 | B50: 3.16 | C50: 10
A51: 50 | B51: 3.24
A52: 51 | B52: 3.32
A53: 52 | B53: 3.4
A54: 53 | B54: 3.48
A55: 54 | B55: 3.57
A56: 55 | B56: 3.65
A57: 56 | B57: 3.74
A58: 57 | B58: 3.83
A59: 58 | B59: 3.92
A60: 59 | B60: 4.02
A61: 60 | B61: 4.12
A62: 61 | B62: 4.22
A63: 62 | B63: 4.32
A64: 63 | B64: 4.42
A65: 64 | B65: 4.53
A66: 65 | B66: 4.64
A67: 66 | B67: 4.75
A68: 67 | B68: 4.87
A69: 68 | B69: 4.99
A70: 69 | B70: =ROUND(10^((A70-1)/96),2) -> 5.11
A71: 70 | B71: 5.23
A72: 71 | B72: 5.36
A73: 72 | B73: 5.49
A74: 73 | B74: 5.62
A75: 74 | B75: 5.76
A76: 75 | B76: 5.9
A77: 76 | B77: 6.04
A78: 77 | B78: 6.19
A79: 78 | B79: 6.34
A80: 79 | B80: 6.49
A81: 80 | B81: 6.65
A82: 81 | B82: 6.81
A83: 82 | B83: 6.98
A84: 83 | B84: 7.15
A85: 84 | B85: 7.32
A86: 85 | B86: 7.5
A87: 86 | B87: 7.68
A88: 87 | B88: 7.87
A89: 88 | B89: 8.06
A90: 89 | B90: 8.25
A91: 90 | B91: 8.45
A92: 91 | B92: 8.66
A93: 92 | B93: 8.87
A94: 93 | B94: 9.09
A95: 94 | B95: 9.31
A96: 95 | B96: 9.53
A97: 96 | B97: 9.76
B98: 10

Sheet Diagrams
A29: Return
A31: =Instructions!A26 -> SLUC537
A32: =Instructions!A27 -> Rev D
A33: =Instructions!A28 -> 2015-07-15
